bitfinex/quotes_ETHUSD_20250217
["timestamp","ask_amount","ask_price","bid_price","bid_amount"]
[1739787685131,3.61188,2768.7,2768.1,3.61256]
[1739787685499,3.61194,2768.6,2768.0,4.43443]
[1739787685694,3.61194,2768.6,2768.1,3.61258]
[1739787685960,3.78975,2769.0,2768.0,0.8218]
[1739787686232,3.61258,2768.1,2767.5,0.7732]
[1739787686394,3.61275,2768.0,2767.5,0.7732]
[1739787686693,3.61266,2768.1,2767.5,4.38656]
[1739787686891,3.6128,2768.0,2767.5,4.38656]
[1739787687093,3.6124,2768.3,2767.5,4.38656]
[1739787687301,3.61232,2768.3,2767.5,4.38645]
[1739787687527,3.61265,2768.1,2767.5,4.38645]
[1739787688122,3.61232,2768.3,2767.7,3.61309]
[1739787688402,0.36121,2768.4,2767.8,3.61297]
[1739787688403,3.6122,2768.4,2767.8,3.61297]
[1739787688805,3.6127,2768.1,2767.5,0.7732]
[1739787689002,3.61212,2768.5,2767.8,3.61294]
[1739787689206,0.292,2768.4,2767.8,3.61294]
[1739787689607,3.90421,2768.4,2767.8,3.61294]
[1739787689817,3.61246,2768.2,2767.5,4.38644]
[1739787690120,3.61246,2768.2,2767.5,1.211844]
[1739787690321,0.292,2768.4,2767.9,3.61284]
[1739787690552,3.90419,2768.4,2767.9,3.61284]
[1739787690725,0.292,2768.4,2767.6,3.61323]
[1739787691054,0.292,2768.4,2767.9,3.6128]
[1739787691257,3.90421,2768.4,2767.9,3.6128]
[1739787691559,3.61245,2768.2,2767.6,3.61315]
[1739787691719,3.61245,2768.2,2767.7,3.613]
[1739787691924,0.1783,2768.0,2767.4,7.22683]
[1739787692142,0.1783,2768.0,2767.4,3.61338]
[1739787692143,3.7911,2768.0,2767.4,3.61338]
[1739787692342,3.7911,2768.0,2767.3,3.61362]
[1739787692659,3.61235,2768.3,2767.6,3.61323]
[1739787692954,3.61227,2768.4,2767.6,3.61323]
[1739787693142,3.61259,2768.1,2767.6,3.61323]
[1739787693316,7.22455,2768.4,2767.7,3.61302]
[1739787693513,3.61232,2768.3,2767.7,3.61302]
[1739787693736,7.994145,2768.4,2767.7,3.61302]
[1739787693941,3.61233,2768.3,2767.7,3.61302]
[1739787694164,3.79038,2768.5,2767.9,3.61281]
[1739787694369,3.79038,2768.5,2767.9,3.61276]
[1739787694578,4.559919,2768.5,2767.9,3.61276]
[1739787694885,4.559919,2768.5,2768.0,0.0503329]
[1739787694886,0.1783,2768.5,2768.0,0.0503329]
[1739787695023,0.1783,2768.5,2768.1,3.6125]
[1739787695368,0.293,2768.6,2768.2,3.61234]
[1739787695675,3.90501,2768.6,2768.2,0.0503329]
[1739787695824,0.701331,2768.6,2768.2,0.0503329]
[1739787696023,3.61232,2768.3,2767.7,3.61304]
[1739787696267,3.61219,2768.4,2767.5,0.8013]
[1739787696654,3.90499,2768.6,2768.0,3.61269]
[1739787696856,0.293,2768.6,2768.0,3.61269]
[1739787697085,3.90499,2768.6,2768.0,7.22532]
[1739787697322,0.293,2768.6,2768.1,3.6125]
[1739787697447,3.61181,2768.7,2768.0,3.61263]
[1739787697669,3.61181,2768.7,2768.2,3.61242]
[1739787697836,0.769373,2768.7,2768.3,3.61232]
[1739787698039,3.61133,2769.1,2768.1,0.7978]
[1739787698363,0.292,2769.0,2768.5,7.22408]
[1739787698531,0.292,2769.0,2768.5,3.61204]
[1739787699377,3.61133,2769.1,2768.5,3.61198]
[1739787699882,7.22273,2769.1,2768.5,3.61198]
[1739787700092,7.22273,2769.1,2768.5,3.61197]
[1739787700093,5.192333,2769.1,2768.5,3.61197]
[1739787700833,3.61133,2769.1,2768.5,3.61197]
[1739787701032,3.61133,2769.1,2768.6,3.61192]
[1739787701428,3.61133,2769.1,2768.5,3.61197]
[1739787701870,3.61148,2769.0,2768.5,3.61197]
[1739787702072,0.1783,2769.2,2768.5,3.61197]
[1739787702389,3.90199,2769.4,2768.8,3.61158]
[1739787702590,0.291,2769.5,2768.8,3.61158]
[1739787702883,3.6111,2769.3,2768.7,0.7661]
[1739787703034,3.61118,2769.2,2768.7,4.37783]
[1739787703235,3.6113,2769.1,2768.7,0.7661]
[1739787704487,3.61115,2769.2,2768.7,4.37789]
[1739787705207,3.61129,2769.1,2768.6,3.61183]
[1739787705350,7.22194,2769.4,2768.8,3.6116]
[1739787705545,7.22196,2769.4,2768.9,3.61154]
[1739787705951,3.61102,2769.3,2768.9,3.61154]
[1739787706190,3.61097,2769.4,2768.9,3.61154]
[1739787706509,11.91841855,2770.0,2769.3,3.611]
[1739787706510,0.29,2769.9,2769.3,3.611]
[1739787706649,0.29,2769.9,2769.1,3.61119]
[1739787706650,0.29,2769.9,2769.1,3.61128]
[1739787706849,0.29,2769.9,2769.4,3.61081]
[1739787707276,3.61071,2769.6,2769.0,4.41074]
[1739787707483,0.29,2769.9,2769.1,3.61127]
[1739787707484,3.61052,2769.7,2769.1,3.61127]
[1739787707683,3.61052,2769.7,2769.2,3.61112]
[1739787707885,3.61052,2769.7,2769.1,3.61127]
[1739787708194,3.61057,2769.7,2769.1,7.22247]
[1739787708348,3.61057,2769.7,2769.2,3.61114]
[1739787708552,3.61036,2769.8,2769.2,3.61114]
[1739787709205,3.61052,2769.7,2769.2,3.61114]
[1739787709553,3.61052,2769.7,2769.3,0.04973734]
[1739787709803,3.61057,2769.7,2769.1,3.61128]
[1739787710022,3.61057,2769.7,2769.4,0.04973734]
[1739787710223,3.90032,2769.9,2769.3,0.76]
[1739787710224,0.29,2769.9,2769.3,0.76]
[1739787710363,3.90027,2769.9,2769.4,3.61076]
[1739787710705,3.61027,2769.9,2769.5,0.04973734]
[1739787711072,3.61027,2769.9,2769.4,3.61087]
[1739787711303,3.61027,2769.9,2769.6,0.04973734]
[1739787711507,3.61027,2769.9,2769.4,3.61087]
[1739787712105,3.61027,2769.9,2769.5,0.04973734]
[1739787712719,11.90641,2770.0,2769.5,0.04973734]
[1739787713004,3.61026,2769.9,2769.5,0.04973734]
[1739787713598,3.61043,2769.8,2769.5,0.04973734]
[1739787713806,3.61043,2769.8,2769.3,0.76]
[1739787714087,8.2963,2770.0,2769.6,0.04973734]
[1739787714401,0.82963,2769.9,2769.2,3.61107]
[1739787714604,3.61044,2769.8,2769.7,0.04973734]
[1739787714809,3.61044,2769.8,2769.2,3.61107]
[1739787714972,3.61055,2769.7,2769.2,3.61107]
[1739787715691,3.61075,2769.6,2769.0,8.02889]
[1739787715910,0.361075,2769.6,2768.7,4.36307]
[1739787716131,3.61096,2769.4,2768.9,3.61153]
[1739787716491,3.61067,2769.6,2768.9,3.61145]
[1739787716695,3.61067,2769.6,2769.0,3.61133]
[1739787716896,3.61067,2769.6,2768.7,0.7514]
[1739787716897,0.0075,2769.8,2768.7,0.7514]
[1739787717093,3.6105,2769.7,2769.2,3.61114]
[1739787717352,0.3618,2769.6,2769.2,3.61108]
[1739787717537,4.43997,2769.9,2769.3,4.44403]
[1739787717834,3.61043,2769.8,2769.3,4.44403]
[1739787718310,8.118,2770.0,2769.3,0.8331]
[1739787718629,0.0075,2770.5,2769.9,3.61014]
[1739787718630,3.60954,2770.5,2769.9,3.61014]
[1739787718835,0.360954,2770.4,2770.0,4.44318]
[1739787719031,0.360954,2770.4,2770.0,0.8331]
[1739787719334,0.289,2770.6,2770.2,3.6098]
[1739787719498,0.289,2770.6,2770.1,3.60989]
[1739787719700,0.90493495,2771.1,2770.3,3.60971]
[1739787720009,3.60882,2771.0,2770.3,3.60964]
[1739787720208,3.60909,2770.8,2770.3,3.60964]
[1739787720415,3.60909,2770.8,2770.1,3.60989]
[1739787720623,3.60909,2770.8,2770.0,0.8331]
[1739787720624,3.969999,2770.8,2770.0,0.8331]
[1739787720809,3.60955,2770.5,2770.0,0.8331]
[1739787721015,3.60966,2770.4,2770.0,0.8331]
[1739787721218,3.60983,2770.3,2769.6,0.8071]
[1739787721410,0.1933,2770.7,2769.6,0.8071]
[1739787721411,3.78761,2770.7,2769.6,0.8071]
[1739787721616,3.60935,2770.6,2770.0,3.60998]
[1739787722134,3.970069,2770.8,2770.0,3.60998]
[1739787722434,3.970069,2770.8,2770.3,3.60966]
[1739787723205,7.579249,2770.8,2770.1,4.36889]
[1739787723426,7.579239,2770.8,2770.2,3.60984]
[1739787723651,3.60921,2770.7,2770.2,3.60984]
[1739787723817,3.970069,2770.8,2770.2,3.60984]
[1739787723818,0.360909,2770.8,2770.3,3.60964]
[1739787724157,3.60924,2770.7,2770.2,3.60984]
[1739787724325,0.360909,2770.8,2770.1,0.759]
[1739787724531,7.579209,2770.8,2770.1,4.36887]
[1739787724731,3.60928,2770.7,2770.2,0.04835811]
[1739787725053,3.60953,2770.5,2770.2,0.04835811]
[1739787725258,0.7868319,2770.7,2769.7,4.40204]
[1739787725259,3.60999,2770.1,2769.7,0.7916]
[1739787725440,3.60971,2770.3,2769.7,3.61048]
[1739787725761,0.1783,2770.4,2769.6,3.61053]
[1739787725934,3.78797,2770.4,2769.9,3.61022]
[1739787726130,3.78797,2770.4,2769.8,3.61036]
[1739787726465,0.360909,2770.8,2770.2,3.60977]
[1739787726670,0.1783,2771.0,2770.6,3.60931]
[1739787726820,3.89796,2770.9,2770.3,3.60962]
[1739787727160,0.289,2770.9,2770.4,3.60949]
[1739787727518,0.289,2770.9,2770.2,3.60972]
[1739787727724,3.6091,2770.8,2770.2,3.60972]
[1739787727945,0.40764,2770.8,2770.0,3.61008]
[1739787728361,3.60931,2770.7,2770.1,3.60986]
[1739787729065,3.60919,2770.8,2770.2,3.60977]
[1739787729522,3.60919,2770.7,2770.2,3.60977]
[1739787729726,3.60908,2770.8,2770.2,3.60974]
[1739787729928,3.60933,2770.6,2770.0,7.22002]
[1739787730254,3.60921,2770.7,2769.9,0.7592]
[1739787730255,3.60954,2770.5,2769.9,4.36941]
[1739787730458,0.721881,2770.5,2769.9,0.7592]
[1739787730621,3.60971,2770.3,2769.3,0.765]
[1739787730824,3.61036,2769.9,2769.3,0.765]
[1739787731048,3.61059,2769.7,2769.1,3.61119]
[1739787731464,3.61059,2769.7,2769.0,4.37637]
[1739787731465,3.61077,2769.5,2769.0,0.765]
[1739787731641,3.61128,2769.1,2768.6,0.765]
[1739787731842,3.61155,2768.9,2768.6,0.765]
[1739787732031,3.61187,2768.7,2768.2,0.765]
[1739787732434,0.1783,2769.1,2767.6,3.61317]
[1739787732435,3.61228,2768.4,2767.9,0.765]
[1739787732654,3.61197,2768.6,2767.9,0.765]
[1739787732960,3.61167,2768.8,2768.1,3.61254]
[1739787733160,3.61167,2768.8,2767.9,0.765]
[1739787733161,3.61178,2768.8,2768.0,3.61262]
[1739787733660,0.36001859,2769.1,2767.9,0.765]
[1739787733661,0.0075,2769.0,2767.9,0.765]
[1739787733867,3.61201,2768.6,2767.9,0.765]
[1739787734031,3.61173,2768.8,2768.0,3.61265]
[1739787734231,3.61173,2768.8,2768.2,3.61243]
[1739787734985,3.61155,2768.9,2768.2,3.61243]
[1739787735346,3.61142,2769.0,2768.3,3.61232]
[1739787735543,0.289,2769.1,2768.5,0.8187]
[1739787735743,4.39363729,2770.0,2768.7,3.61172]
[1739787735948,4.39363729,2770.0,2768.5,0.8187]
[1739787735949,3.61074,2769.6,2768.9,3.61145]
[1739787736149,3.61074,2769.6,2769.0,3.61136]
[1739787736648,3.61074,2769.6,2768.9,3.61145]
[1739787736872,0.1783,2769.7,2768.9,3.61145]
[1739787736873,3.61077,2769.5,2768.9,3.61145]
[1739787737272,3.61077,2769.5,2768.7,3.61175]
[1739787737273,3.61093,2769.4,2768.7,3.61175]
[1739787737486,3.6111,2769.3,2768.7,3.61175]
[1739787737689,3.61123,2769.2,2768.6,3.61191]
[1739787737987,0.72217,2769.4,2768.5,0.8187]
[1739787738288,0.1783,2769.7,2768.5,0.8187]
[1739787738598,0.289,2769.9,2769.2,0.8187]
[1739787738744,3.61055,2769.7,2769.2,0.8187]
[1739787739194,3.61046,2769.8,2769.2,0.8187]
[1739787739399,0.288,2769.9,2769.4,3.61081]
[1739787739899,0.288,2770.2,2769.8,3.61026]
[1739787740246,0.288,2770.2,2769.9,0.86076679]
[1739787740483,3.89793,2770.2,2769.9,0.86076679]
[1739787740705,3.89793,2770.2,2769.9,0.04206679]
[1739787741007,0.288,2770.2,2769.9,0.04206679]
[1739787741211,0.288,2770.2,2769.8,3.61028]
[1739787741485,3.60937,2770.6,2770.0,0.04259604]
[1739787741789,3.60972,2770.3,2769.8,0.803952]
[1739787741994,3.60985,2770.2,2770.1,0.04259604]
[1739787742532,3.60962,2770.4,2769.8,3.61035]
[1739787742675,3.60962,2770.4,2770.1,0.04259604]
[1739787742871,3.60962,2770.4,2769.6,4.42925]
[1739787743077,3.60971,2770.3,2770.2,0.04259604]
[1739787743259,3.60992,2770.2,2769.6,0.8187]
[1739787743791,3.60984,2770.2,2769.7,3.61049]
[1739787743989,0.0791,2770.7,2769.3,4.40066]
[1739787743990,3.61025,2769.9,2769.3,4.40066]
[1739787744192,0.0791,2770.6,2769.4,3.6108]
[1739787744348,0.0791,2770.6,2769.5,0.44005]
[1739787744349,3.61022,2770.0,2769.5,0.44005]
[1739787745192,3.61038,2769.8,2769.3,0.7897]
[1739787745782,3.68925,2770.0,2769.3,4.40066]
[1739787746091,3.61037,2769.8,2769.3,4.40066]
[1739787746262,3.68925,2770.0,2769.3,4.40066]
[1739787746463,3.61024,2769.9,2769.3,4.40066]
[1739787746674,3.68925,2770.0,2769.4,3.61088]
[1739787746675,0.0791,2770.0,2769.4,3.61088]
[1739787746883,3.60992,2770.2,2769.3,4.40066]
[1739787746884,3.61025,2769.9,2769.3,4.40064]
[1739787747191,7.22057,2769.9,2769.3,4.40064]
[1739787747809,3.61059,2769.7,2769.3,0.7897]
[1739787748454,3.61056,2769.7,2769.1,3.61126]
[1739787748655,3.68966,2769.7,2769.1,3.61126]
[1739787748856,0.0791,2770.1,2769.0,0.7774]
[1739787749056,3.61024,2769.9,2769.0,0.7774]
[1739787749284,3.6104,2769.8,2769.3,3.61101]
[1739787749474,0.0791,2770.1,2769.0,4.38875]
[1739787749673,3.89814,2770.0,2769.4,3.61081]
[1739787749870,3.60984,2770.2,2769.2,0.8202]
[1739787750069,3.60997,2770.1,2769.6,3.61061]
[1739787750802,3.61023,2770.0,2769.3,3.61097]
[1739787750987,3.61044,2769.8,2769.2,4.43126]
[1739787751379,3.61044,2769.8,2769.3,3.61092]
[1739787751576,3.61044,2769.8,2769.2,4.43126]
[1739787751892,3.61044,2769.8,2769.2,0.8202]
[1739787752085,3.61044,2769.8,2769.3,3.61101]
[1739787752277,3.971153,2770.0,2769.2,0.8202]
[1739787752481,3.971153,2770.0,2769.4,3.61079]
[1739787752680,3.61024,2769.9,2769.4,3.61079]
[1739787753067,0.361023,2770.0,2769.5,3.61068]
[1739787753386,0.361023,2770.0,2769.2,0.8202]
[1739787753705,3.89792,2770.2,2769.6,3.61057]
[1739787753911,0.288,2770.2,2769.6,3.6106]
[1739787754067,0.288,2770.2,2769.8,3.61028]
[1739787754267,3.61006,2770.1,2769.6,3.61055]
[1739787754695,3.61006,2770.1,2769.7,0.04192075]
[1739787754889,3.89797,2770.2,2769.7,3.65231075]
[1739787755102,3.61002,2770.1,2769.7,0.04192075]
[1739787755481,3.61014,2770.0,2769.7,0.04192075]
[1739787755683,3.61014,2770.0,2769.5,3.61075]
[1739787755995,3.61014,2770.0,2769.2,4.874393]
[1739787755996,3.61014,2770.0,2769.8,0.0418555]
[1739787756192,3.61014,2770.0,2769.3,3.61089]
[1739787756394,0.288,2770.2,2769.9,0.0418555]
[1739787756598,3.89791,2770.2,2769.7,3.61042]
[1739787756920,0.288,2770.2,2769.4,3.61089]
[1739787757121,0.288,2770.2,2769.9,3.61015]
[1739787757327,3.97668,2770.4,2769.7,3.6104]
[1739787757474,3.97668,2770.4,2769.6,0.7572]
[1739787757475,3.97668,2770.4,2770.0,0.0418555]
[1739787757803,4.374348,2770.4,2769.6,4.36777]
[1739787758003,3.60987,2770.2,2770.1,0.0418555]
[1739787758177,3.60972,2770.3,2769.6,4.3677]
[1739787758378,0.0791,2770.4,2770.1,0.0418555]
[1739787758582,0.0075,2770.7,2770.2,3.60982]
[1739787758583,0.288,2770.5,2770.2,3.60982]
[1739787758784,0.288,2770.5,2770.1,3.60994]
[1739787758983,3.60935,2770.6,2770.3,0.04153642]
[1739787759200,0.0791,2770.7,2769.6,4.36782]
[1739787759399,0.0791,2770.7,2769.7,0.47288022]
[1739787759609,3.6094,2770.6,2770.0,3.61002]
[1739787759787,0.0791,2770.7,2770.2,3.60983]
[1739787759990,3.68833,2770.7,2770.2,3.60983]
[1739787760318,3.68833,2770.7,2770.3,0.04153642]
[1739787760486,3.68833,2770.7,2770.2,7.21959]
[1739787760685,3.68833,2770.7,2770.4,0.04153642]
[1739787760885,3.60933,2770.6,2770.1,3.60989]
[1739787761112,3.60933,2770.6,2770.5,0.04153642]
[1739787761337,3.68833,2770.7,2770.1,3.60989]
[1739787761517,3.68833,2770.7,2770.5,0.04153642]
[1739787761818,3.68833,2770.7,2770.2,3.60976]
[1739787762024,3.68833,2770.7,2770.6,0.04153642]
[1739787762391,0.0791,2770.7,2770.3,3.60964]
[1739787762791,0.0791,2770.7,2770.4,0.04153642]
[1739787763194,8.112,2770.9,2770.4,0.04153642]
[1739787763402,8.112,2770.9,2770.6,3.60925]
[1739787763601,8.112,2770.9,2770.5,3.60945]
[1739787763827,8.112,2770.9,2770.7,0.04153642]
[1739787764007,8.112,2770.9,2770.6,0.04104349]
[1739787764205,8.112,2770.9,2770.7,3.60918]
[1739787764532,8.112,2770.9,2770.5,3.60937]
[1739787764694,8.112,2770.9,2770.8,0.04104349]
[1739787764896,8.112,2770.9,2770.6,3.60931]
[1739787765204,8.112,2770.9,2770.7,0.04104349]
[1739787765403,3.6086,2771.2,2770.7,3.65021349]
[1739787765617,0.3671,2771.3,2770.8,3.609]
[1739787765808,3.68754,2771.3,2770.8,3.64999349]
[1739787766131,0.0791,2771.6,2770.8,1.57585984]
[1739787766318,0.0791,2771.6,2770.8,0.84994349]
[1739787766522,3.60848,2771.3,2770.8,0.84994349]
[1739787766700,3.60837,2771.4,2770.8,4.45899349]
[1739787766904,3.60842,2771.3,2770.8,4.45899349]
[1739787767627,3.60874,2771.1,2770.8,0.04104349]
[1739787767795,3.60888,2771.0,2770.8,0.04104349]
[1739787768136,3.977524,2771.1,2770.9,0.04026059]
[1739787768296,7.94986769,2771.9,2770.9,0.04026059]
[1739787768497,3.60853,2771.3,2770.6,3.60928]
[1739787768845,3.60888,2771.0,2770.7,0.04026059]
[1739787769135,0.0791,2770.9,2770.4,3.60951]
[1739787769334,3.68804,2770.9,2770.8,0.04026059]
[1739787769498,3.68804,2770.9,2770.4,3.60955]
[1739787769699,3.68804,2770.9,2770.5,0.04026059]
[1739787770240,0.0791,2770.9,2770.5,0.04026059]
[1739787770542,0.0075,2770.2,2769.4,0.8143]
[1739787770728,3.61007,2770.1,2769.5,3.61063]
[1739787770925,0.0791,2770.3,2769.8,3.61033]
[1739787771234,0.288,2770.5,2770.0,3.6101]
[1739787771397,3.89754,2770.5,2769.6,3.61056]
[1739787771602,3.6098,2770.3,2769.6,4.38881765]
[1739787772055,3.6246,2770.4,2769.8,3.61029]
[1739787772334,0.288,2770.5,2770.0,3.6101]
[1739787772635,3.89748,2770.5,2769.8,3.61036]
[1739787772934,0.288,2770.5,2769.9,3.61016]
[1739787773235,0.288,2770.5,2770.0,4.40193]
[1739787773443,0.288,2770.5,2769.8,3.6103]
[1739787773615,3.89754,2770.5,2769.8,3.61029]
[1739787773814,3.89754,2770.5,2769.9,3.61023]
[1739787774014,0.0791,2770.6,2770.1,3.60984]
[1739787774202,0.288,2770.6,2770.2,3.60973]
[1739787775103,0.288,2770.6,2769.8,3.87596325]
[1739787775332,0.288,2770.6,2770.2,3.60977]
[1739787775534,0.288,2770.6,2770.0,7.22008]
[1739787775701,0.288,2770.6,2769.8,3.61033]
[1739787775702,3.6095,2770.5,2769.8,3.61033]
[1739787775897,0.0791,2770.4,2770.0,3.61008]
[1739787776745,0.0791,2770.4,2769.7,0.7919]
[1739787776946,0.0791,2770.4,2770.1,3.6099]
[1739787777244,0.288,2770.6,2770.1,3.6099]
[1739787777444,0.288,2770.6,2770.1,3.60988]
[1739787777644,0.288,2770.6,2770.3,3.60971]
[1739787778415,0.288,2770.6,2770.5,3.60945]
[1739787778927,0.288,2770.6,2770.1,3.60989]
[1739787779130,0.288,2770.6,2770.1,3.970879]
[1739787779512,0.288,2770.6,2770.3,3.60969]
[1739787780248,0.288,2770.6,2770.1,3.970879]
[1739787780249,0.288,2770.6,2770.2,3.60977]
[1739787780614,0.288,2770.6,2770.3,3.60969]
[1739787781125,0.288,2770.6,2770.4,3.60957]
[1739787781313,0.288,2770.6,2770.3,3.60969]
[1739787781515,0.288,2770.6,2770.3,3.60964]
[1739787781750,0.288,2770.6,2770.5,3.60945]
[1739787781954,0.288,2770.6,2770.3,7.21926]
[1739787782253,0.288,2770.6,2770.3,7.21927]
[1739787782454,0.288,2770.6,2770.5,3.60945]
[1739787782816,0.288,2770.6,2770.3,3.60962]
[1739787783011,3.68798,2771.0,2770.3,3.60962]
[1739787783012,3.97598,2771.0,2770.3,3.60962]
[1739787783329,3.97598,2771.0,2770.4,3.60951]
[1739787783525,3.97598,2771.0,2770.5,3.60944]
[1739787783726,3.60907,2770.8,2770.3,4.40682]
[1739787783931,3.60895,2770.9,2770.3,4.40682]
[1739787784475,0.0791,2771.0,2770.4,3.60952]
[1739787784767,3.68797,2771.0,2770.5,3.60942]
[1739787784966,3.60902,2770.9,2770.4,3.65007052]
[1739787785168,3.60902,2770.9,2770.4,3.60951]
[1739787785462,3.60902,2770.9,2770.5,0.04055052]
[1739787785668,3.60915,2770.8,2770.5,0.04055052]
[1739787785870,4.367508,2770.9,2770.5,0.04055052]
[1739787786174,4.367508,2770.9,2770.4,3.60954]
[1739787786517,0.758488,2770.9,2770.5,0.04055052]
[1739787786716,3.60961,2770.4,2769.9,0.825]
[1739787787163,3.68871,2770.4,2770.0,0.04066647]
[1739787787831,0.0791,2770.4,2770.1,3.60987]
[1739787788036,0.0791,2770.4,2770.1,3.65053647]
[1739787788455,0.015,2770.3,2770.1,0.04066647]
[1739787788758,0.385371,2770.3,2769.9,3.61017]
[1739787788922,0.015,2770.3,2770.2,0.04071719]
[1739787789117,0.015,2770.3,2769.9,3.61017]
[1739787789118,0.0791,2770.4,2769.9,3.61017]
[1739787789323,0.0791,2770.4,2770.1,3.60994]
[1739787789531,0.0791,2770.4,2769.9,3.61017]
[1739787789762,0.0791,2770.4,2770.0,3.6101]
[1739787789921,0.0791,2770.4,2770.0,0.04071719]
[1739787790433,0.0791,2770.4,2770.0,3.65075719]
[1739787790856,0.0791,2770.4,2770.1,3.60996]
[1739787791174,0.0941,2770.7,2770.6,3.60932]
[1739787791350,0.288,2770.7,2770.1,3.60997]
[1739787791541,0.288,2770.7,2770.6,3.65020363]
[1739787792222,0.72760269,2771.2,2770.6,0.04096363]
[1739787792437,0.0791,2771.7,2771.3,3.60832]
[1739787792639,3.60766,2771.9,2771.3,3.60832]
[1739787792829,0.288,2771.9,2771.5,3.60815]
[1739787793361,0.288,2771.9,2771.3,3.60832]
[1739787793565,3.89568,2771.9,2771.5,0.04049978]
[1739787793762,3.89568,2771.9,2771.3,3.60832]
[1739787794069,3.89568,2771.9,2771.5,0.04049978]
[1739787794223,3.60779,2771.8,2771.3,3.60832]
[1739787794424,3.89568,2771.9,2771.5,0.04049978]
[1739787794425,8.127,2771.6,2771.5,0.04049978]
[1739787794666,21.58272,2771.6,2771.1,3.60865]
[1739787794868,12.54772,2771.6,2771.5,0.04049978]
[1739787795033,21.58272,2771.6,2771.1,3.60865]
[1739787795230,21.58272,2771.6,2770.5,6.96724648]
[1739787795231,11.81412,2771.6,2771.5,0.04049978]
[1739787795447,11.81412,2771.6,2769.7,0.7746]
[1739787795448,3.60919,2770.7,2769.7,0.7746]
[1739787795728,3.60941,2770.6,2769.9,7.22032]
[1739787795927,3.60941,2770.6,2770.0,0.03477033]
[1739787796127,3.61672,2770.7,2770.1,3.60997]
[1739787796333,3.60933,2770.6,2770.2,0.03498023]
[1739787796527,0.0075,2770.7,2770.2,0.03498023]
[1739787796734,0.288,2770.6,2770.2,0.39946225]
[1739787796934,0.288,2770.6,2770.3,3.60962]
[1739787797128,0.288,2770.6,2770.4,0.03538567]
[1739787797373,0.288,2770.6,2769.7,0.7746]
[1739787797530,0.288,2770.6,2770.2,3.60984]
[1739787798171,0.288,2770.6,2770.5,3.60945]
[1739787798367,0.288,2770.6,2770.4,3.60955]
[1739787798667,0.288,2770.6,2770.5,3.64493706]
[1739787798889,0.288,2770.6,2770.5,0.03548706]
[1739787799265,0.288,2770.6,2770.2,7.2196]
[1739787799442,0.288,2770.6,2770.5,0.03548706]
[1739787799840,0.0791,2771.0,2770.4,4.37359]
[1739787800050,3.89697,2770.9,2770.5,0.03548706]
[1739787800265,3.89697,2770.9,2770.4,4.37359]
[1739787800569,3.89697,2770.9,2770.4,0.7641]
[1739787800746,3.89697,2770.9,2770.5,0.03548706]
[1739787801645,0.288,2770.9,2770.5,0.03548706]
[1739787801845,3.6879,2771.0,2770.5,0.03548706]
[1739787802033,0.288,2771.0,2770.7,3.60911]
[1739787802692,0.288,2771.0,2770.8,0.03548706]
[1739787802896,0.288,2771.0,2770.7,3.60911]
[1739787802897,0.06291294,2770.6,2770.4,0.7641]
[1739787803099,0.06291294,2770.6,2770.4,4.37364]
[1739787803997,0.06291294,2770.6,2770.4,0.7641]
[1739787804398,0.06291294,2770.6,2770.2,3.60983]
[1739787804692,0.43013223,2770.6,2770.2,3.60983]
[1739787805093,0.43013223,2770.6,2770.2,3.60973]
[1739787805294,0.06291294,2770.6,2770.5,3.60945]
[1739787805497,0.06291294,2770.6,2770.4,3.60956]
[1739787805677,0.06291294,2770.6,2770.3,3.60969]
[1739787805864,0.06291294,2770.6,2770.4,3.60955]
[1739787806478,0.06291294,2770.6,2770.4,7.21906]
[1739787806674,0.06291294,2770.6,2770.4,3.6095]
[1739787807198,0.06291294,2770.6,2770.5,3.60945]
[1739787807767,0.14201294,2770.6,2770.2,3.60981]
[1739787807965,0.015,2770.5,2770.0,3.61001]
[1739787808171,0.015,2770.5,2770.0,7.22005]
[1739787808368,0.015,2770.5,2770.0,3.61001]
[1739787808568,4.36210229,2770.5,2770.0,3.61001]
[1739787808919,0.75257229,2770.5,2770.1,3.60993]
[1739787809084,0.75257229,2770.5,2770.0,3.61001]
[1739787809606,0.75257229,2770.5,2770.1,3.6099]
[1739787810409,0.75257229,2770.5,2770.0,3.61007]
[1739787810716,0.45039152,2770.4,2770.2,0.03476981]
[1739787810923,0.45039152,2770.4,2770.0,3.61007]
[1739787811374,0.45039152,2770.4,2770.1,0.03476981]
[1739787812378,0.45039152,2770.4,2769.9,8.03804]
[1739787812690,0.45039152,2770.4,2770.0,3.64484981]
[1739787813812,0.45039152,2770.4,2770.1,3.60989]
[1739787814029,0.015,2770.5,2770.1,3.60989]
[1739787814178,0.14201294,2770.6,2770.2,3.64454981]
[1739787815211,0.06291294,2770.6,2770.3,3.60964]
[1739787815411,0.06291294,2770.6,2770.4,3.6095]
[1739787815715,0.06291294,2770.6,2770.5,3.60945]
[1739787816522,0.06291294,2770.6,2770.2,3.60972]
[1739787816694,0.06291294,2770.6,2770.1,3.60987]
[1739787817011,3.60958,2770.4,2769.9,4.42793]
[1739787817175,3.60966,2770.4,2770.2,0.03498708]
[1739787817375,3.60966,2770.4,2769.9,0.8177]
[1739787817580,3.60966,2770.4,2770.0,0.03497259]
[1739787818715,3.68903,2770.2,2770.0,0.03497259]
[1739787819012,3.60997,2770.1,2769.6,0.7786]
[1739787819178,3.61769,2770.0,2769.4,3.61083]
[1739787819615,3.61769,2770.0,2769.1,1.54928961]